[Event "Titled Tuesday Blitz February 22 Early 2022"]
[White "Kobo, Ori"]
[Black "Tari, Aryan"]
[WhiteFideId "2812320"]
[BlackFideId "1510045"]
[WhiteElo "2420"]
[BlackElo "2567"]
[Result "0-1"]
[Round "10"]
[TimeControl "180+1"]
[Date "2022.02.22"]
[WhiteClock "0:00:19"]
[BlackClock "0:01:21"]

1. Nc3 {[%clk 0:03:00]}  c5 {[%clk 0:02:56]} 2. Nf3 {[%clk 0:02:59]}  Nc6 {[%clk 0:02:49]} 3. d4 {[%clk 0:02:59]}  d5 {[%clk 0:02:37]} 4. dxc5 {[%clk 0:02:53]}  d4 {[%clk 0:02:37]} 5. Ne4 {[%clk 0:02:41]}  e5 {[%clk 0:02:22]} 6. e3 {[%clk 0:02:35]}  Bxc5 {[%clk 0:02:02]} 7. Nxc5 {[%clk 0:02:33]}  Qa5+ {[%clk 0:02:02]} 8. Bd2 {[%clk 0:02:32]}  Qxc5 {[%clk 0:02:03]} 9. exd4 {[%clk 0:02:25]}  exd4 {[%clk 0:02:03]} 10. Bd3 {[%clk 0:02:20]}  Nf6 {[%clk 0:02:03]} 11. O-O {[%clk 0:02:14]}  O-O {[%clk 0:02:04]} 12. h3 {[%clk 0:02:13]}  h6 {[%clk 0:02:04]} 13. Re1 {[%clk 0:02:13]}  Bf5 {[%clk 0:02:04]} 14. b4 {[%clk 0:01:53]}  Qd5 {[%clk 0:01:59]} 15. Bxf5 {[%clk 0:01:41]}  Qxf5 {[%clk 0:02:00]} 16. a4 {[%clk 0:01:42]}  a6 {[%clk 0:01:56]} 17. c4 {[%clk 0:01:23]}  Ne4 {[%clk 0:01:35]} 18. b5 {[%clk 0:01:21]}  axb5 {[%clk 0:01:35]} 19. cxb5 {[%clk 0:01:10]}  Ne5 {[%clk 0:01:35]} 20. Ra3 {[%clk 0:00:45]}  Nc4 {[%clk 0:01:31]} 21. Bc1 {[%clk 0:00:23]}  Nxa3 {[%clk 0:01:29]} 22. Bxa3 {[%clk 0:00:24]}  Rfd8 {[%clk 0:01:27]} 23. Qd3 {[%clk 0:00:23]}  Nd6 {[%clk 0:01:24]} 24. Rd1 {[%clk 0:00:18]}  Qxd3 {[%clk 0:01:21]} 25. Rxd3 {[%clk 0:00:19]}  Rxa4 {[%clk 0:01:21]} 0-1


[Site "https://www.chess.com"]

[Event "Titled Tuesday Blitz February 22 Early 2022"]
[White "Kovalenko, Igor"]
[Black "Kollars, Dmitrij"]
[WhiteFideId "14117908"]
[BlackFideId "12909572"]
[WhiteElo "2560"]
[BlackElo "2584"]
[Result "0-1"]
[Round "10"]
[TimeControl "180+1"]
[Date "2022.02.22"]
[WhiteClock "0:00:13"]
[BlackClock "0:00:08"]

1. d4 {[%clk 0:02:47]}  Nf6 {[%clk 0:02:59]} 2. Nf3 {[%clk 0:02:47]}  d5 {[%clk 0:02:59]} 3. c4 {[%clk 0:02:47]}  e6 {[%clk 0:02:58]} 4. Nc3 {[%clk 0:02:47]}  Nbd7 {[%clk 0:02:55]} 5. cxd5 {[%clk 0:02:46]}  exd5 {[%clk 0:02:56]} 6. Bf4 {[%clk 0:02:47]}  c6 {[%clk 0:02:53]} 7. h3 {[%clk 0:02:47]}  Bb4 {[%clk 0:02:43]} 8. Qb3 {[%clk 0:02:45]}  a5 {[%clk 0:02:33]} 9. e3 {[%clk 0:02:40]}  O-O {[%clk 0:02:31]} 10. Bd3 {[%clk 0:02:40]}  Ne4 {[%clk 0:02:27]} 11. Bxe4 {[%clk 0:02:36]}  dxe4 {[%clk 0:02:26]} 12. Nd2 {[%clk 0:02:37]}  Nf6 {[%clk 0:02:23]} 13. a3 {[%clk 0:02:37]}  Be6 {[%clk 0:02:22]} 14. Qc2 {[%clk 0:02:35]}  Bxc3 {[%clk 0:02:22]} 15. bxc3 {[%clk 0:02:36]}  Nd5 {[%clk 0:02:10]} 16. Bh2 {[%clk 0:02:29]}  Qg5 {[%clk 0:02:09]} 17. g4 {[%clk 0:01:57]}  f5 {[%clk 0:02:02]} 18. gxf5 {[%clk 0:01:51]}  Qxf5 {[%clk 0:01:47]} 19. Bg3 {[%clk 0:01:38]}  Qg6 {[%clk 0:01:47]} 20. Rg1 {[%clk 0:01:29]}  Bf5 {[%clk 0:01:25]} 21. c4 {[%clk 0:01:28]}  Nf6 {[%clk 0:01:23]} 22. O-O-O {[%clk 0:01:27]}  b5 {[%clk 0:01:19]} 23. Bd6 {[%clk 0:01:20]}  Qf7 {[%clk 0:01:19]} 24. Bxf8 {[%clk 0:01:20]}  Qxf8 {[%clk 0:01:20]} 25. c5 {[%clk 0:01:20]}  Nd5 {[%clk 0:01:18]} 26. Rg3 {[%clk 0:01:11]}  b4 {[%clk 0:01:02]} 27. Rdg1 {[%clk 0:01:10]}  Bg6 {[%clk 0:00:56]} 28. a4 {[%clk 0:01:10]}  Qxf2 {[%clk 0:00:50]} 29. Nc4 {[%clk 0:01:06]}  Rf8 {[%clk 0:00:42]} 30. h4 {[%clk 0:00:41]}  Qf5 {[%clk 0:00:10]} 31. Ne5 {[%clk 0:00:36]}  Nc3 {[%clk 0:00:09]} 32. Kb2 {[%clk 0:00:29]}  Rf6 {[%clk 0:00:07]} 33. Qb3+ {[%clk 0:00:13]}  Kh8 {[%clk 0:00:07]} 34. Qc2 {[%clk 0:00:14]}  Qe6 {[%clk 0:00:07]} 35. Qb3 {[%clk 0:00:13]}  Rf2+ {[%clk 0:00:08]} 0-1


[Site "https://www.chess.com"]

[Event "Titled Tuesday Blitz February 22 Early 2022"]
[White "Lakshmi C"]
[Black "Yushko, Olga"]
[WhiteFideId "25035347"]
[BlackFideId "14114500"]
[WhiteElo "1775"]
[BlackElo "2028"]
[Result "1-0"]
[Round "10"]
[TimeControl "180+1"]
[Date "2022.02.22"]
[WhiteClock "0:00:31"]
[BlackClock "0:00:02"]

1. Nf3 {[%clk 0:02:59]}  e6 {[%clk 0:02:55]} 2. g3 {[%clk 0:02:57]}  f5 {[%clk 0:02:56]} 3. Bg2 {[%clk 0:02:57]}  Nf6 {[%clk 0:02:56]} 4. c4 {[%clk 0:02:55]}  Be7 {[%clk 0:02:57]} 5. Nc3 {[%clk 0:02:55]}  d6 {[%clk 0:02:56]} 6. O-O {[%clk 0:02:55]}  O-O {[%clk 0:02:56]} 7. d3 {[%clk 0:02:55]}  e5 {[%clk 0:02:56]} 8. e4 {[%clk 0:02:54]}  Nc6 {[%clk 0:02:55]} 9. h3 {[%clk 0:02:49]}  Qe8 {[%clk 0:02:55]} 10. Nh2 {[%clk 0:02:34]}  Qg6 {[%clk 0:02:46]} 11. Kh1 {[%clk 0:02:19]}  a5 {[%clk 0:02:44]} 12. b3 {[%clk 0:02:04]}  Be6 {[%clk 0:02:42]} 13. Qe1 {[%clk 0:01:56]}  Nd4 {[%clk 0:02:40]} 14. Rb1 {[%clk 0:01:55]}  c6 {[%clk 0:02:24]} 15. f4 {[%clk 0:01:44]}  Nc2 {[%clk 0:01:55]} 16. Qf2 {[%clk 0:01:42]}  exf4 {[%clk 0:01:32]} 17. Qxc2 {[%clk 0:01:34]}  fxg3 {[%clk 0:01:32]} 18. Nf3 {[%clk 0:01:30]}  fxe4 {[%clk 0:01:26]} 19. Nxe4 {[%clk 0:01:19]}  Nxe4 {[%clk 0:01:20]} 20. dxe4 {[%clk 0:01:19]}  Qh5 {[%clk 0:01:18]} 21. Be3 {[%clk 0:01:18]}  Bxh3 {[%clk 0:01:15]} 22. Kg1 {[%clk 0:01:18]}  Bxg2 {[%clk 0:00:37]} 23. Qxg2 {[%clk 0:01:17]}  Qg4 {[%clk 0:00:31]} 24. Nd2 {[%clk 0:01:07]}  Rf6 {[%clk 0:00:27]} 25. Rxf6 {[%clk 0:01:03]}  Bxf6 {[%clk 0:00:28]} 26. Rf1 {[%clk 0:01:03]}  Be5 {[%clk 0:00:27]} 27. Qf3 {[%clk 0:00:54]}  Qg6 {[%clk 0:00:26]} 28. Qf5 {[%clk 0:00:49]}  Qe8 {[%clk 0:00:21]} 29. Nf3 {[%clk 0:00:46]}  g6 {[%clk 0:00:20]} 30. Qg4 {[%clk 0:00:45]}  Qe7 {[%clk 0:00:13]} 31. Ng5 {[%clk 0:00:42]}  h5 {[%clk 0:00:12]} 32. Qe6+ {[%clk 0:00:41]}  Qxe6 {[%clk 0:00:12]} 33. Nxe6 {[%clk 0:00:41]}  Re8 {[%clk 0:00:09]} 34. Ng5 {[%clk 0:00:37]}  h4 {[%clk 0:00:09]} 35. Kg2 {[%clk 0:00:36]}  d5 {[%clk 0:00:03]} 36. cxd5 {[%clk 0:00:31]}  cxd5 {[%clk 0:00:03]} 37. exd5 {[%clk 0:00:31]}  Bd6 {[%clk 0:00:02]} 38. Rf3 {[%clk 0:00:31]} 1-0


[Site "https://www.chess.com"]

[Event "Titled Tuesday Blitz February 22 Early 2022"]
[White "Langner, Ladislav"]
[Black "Potapova, Margarita"]
[WhiteFideId "300403"]
[BlackFideId "14126869"]
[WhiteElo "2346"]
[BlackElo "2209"]
[Result "0-1"]
[Round "10"]
[TimeControl "180+1"]
[Date "2022.02.22"]
[WhiteClock "0:00:01"]
[BlackClock "0:00:10"]

1. e4 {[%clk 0:03:00]}  g6 {[%clk 0:02:57]} 2. d4 {[%clk 0:03:00]}  Bg7 {[%clk 0:02:57]} 3. Nc3 {[%clk 0:03:00]}  c6 {[%clk 0:02:53]} 4. f4 {[%clk 0:02:58]}  e6 {[%clk 0:02:40]} 5. Nf3 {[%clk 0:02:56]}  Ne7 {[%clk 0:02:40]} 6. Bd3 {[%clk 0:02:54]}  O-O {[%clk 0:02:40]} 7. O-O {[%clk 0:02:53]}  d5 {[%clk 0:02:36]} 8. e5 {[%clk 0:02:53]}  c5 {[%clk 0:02:36]} 9. dxc5 {[%clk 0:02:49]}  Nbc6 {[%clk 0:02:35]} 10. Ne2 {[%clk 0:02:46]}  Qa5 {[%clk 0:02:23]} 11. Be3 {[%clk 0:02:44]}  f6 {[%clk 0:02:14]} 12. exf6 {[%clk 0:02:38]}  Bxf6 {[%clk 0:02:15]} 13. c3 {[%clk 0:02:36]}  Nf5 {[%clk 0:02:14]} 14. Bxf5 {[%clk 0:02:34]}  exf5 {[%clk 0:02:09]} 15. Qxd5+ {[%clk 0:02:33]}  Kg7 {[%clk 0:02:08]} 16. Ned4 {[%clk 0:02:24]}  Qc7 {[%clk 0:02:05]} 17. Nb5 {[%clk 0:02:13]}  Qe7 {[%clk 0:02:01]} 18. Rfe1 {[%clk 0:02:04]}  Be6 {[%clk 0:01:55]} 19. Qd6 {[%clk 0:02:04]}  Qxd6 {[%clk 0:01:41]} 20. Nxd6 {[%clk 0:02:03]}  Bd5 {[%clk 0:01:38]} 21. Rad1 {[%clk 0:01:54]}  Bxa2 {[%clk 0:01:37]} 22. Nxb7 {[%clk 0:01:53]}  Rab8 {[%clk 0:01:34]} 23. Rd7+ {[%clk 0:01:52]}  Kg8 {[%clk 0:01:34]} 24. b4 {[%clk 0:01:49]}  Bxc3 {[%clk 0:01:30]} 25. Bd2 {[%clk 0:01:39]}  Bxb4 {[%clk 0:01:20]} 26. Bxb4 {[%clk 0:01:37]}  Nxb4 {[%clk 0:01:21]} 27. Ree7 {[%clk 0:01:33]}  Rf7 {[%clk 0:01:21]} 28. Rxf7 {[%clk 0:01:31]}  Bxf7 {[%clk 0:01:22]} 29. Ne5 {[%clk 0:01:27]}  Bd5 {[%clk 0:01:15]} 30. Na5 {[%clk 0:01:20]}  Rb5 {[%clk 0:01:06]} 31. c6 {[%clk 0:01:17]}  Rxa5 {[%clk 0:00:53]} 32. c7 {[%clk 0:01:11]}  Bb7 {[%clk 0:00:53]} 33. Rd8+ {[%clk 0:01:04]}  Kg7 {[%clk 0:00:52]} 34. Rb8 {[%clk 0:01:04]}  Ba6 {[%clk 0:00:49]} 35. Rxb4 {[%clk 0:01:01]}  Rc5 {[%clk 0:00:47]} 36. Ra4 {[%clk 0:01:01]}  Bb7 {[%clk 0:00:42]} 37. c8=Q {[%clk 0:00:49]}  Bxc8 {[%clk 0:00:38]} 38. Rxa7+ {[%clk 0:00:49]}  Kg8 {[%clk 0:00:33]} 39. Kf2 {[%clk 0:00:40]}  Rc3 {[%clk 0:00:29]} 40. g3 {[%clk 0:00:33]}  Be6 {[%clk 0:00:28]} 41. Ra5 {[%clk 0:00:17]}  Kg7 {[%clk 0:00:26]} 42. Rb5 {[%clk 0:00:14]}  Kf6 {[%clk 0:00:25]} 43. Rb2 {[%clk 0:00:14]}  h6 {[%clk 0:00:24]} 44. Re2 {[%clk 0:00:13]}  g5 {[%clk 0:00:21]} 45. fxg5+ {[%clk 0:00:12]}  hxg5 {[%clk 0:00:22]} 46. Nf3 {[%clk 0:00:12]}  Bd5 {[%clk 0:00:16]} 47. Ne5 {[%clk 0:00:12]}  Rc1 {[%clk 0:00:14]} 48. Nd3 {[%clk 0:00:08]}  Rh1 {[%clk 0:00:13]} 49. Ke3 {[%clk 0:00:08]}  Bc4 {[%clk 0:00:12]} 50. Rc2 {[%clk 0:00:08]}  Bd5 {[%clk 0:00:11]} 51. Nf2 {[%clk 0:00:06]}  Re1+ {[%clk 0:00:10]} 52. Kd2 {[%clk 0:00:05]}  Ra1 {[%clk 0:00:09]} 53. Ke3 {[%clk 0:00:05]}  Ra3+ {[%clk 0:00:09]} 54. Ke2 {[%clk 0:00:05]}  Ra7 {[%clk 0:00:09]} 55. Rd2 {[%clk 0:00:01]}  Re7+ {[%clk 0:00:09]} 56. Kf1 {[%clk 0:00:01]}  Bf3 {[%clk 0:00:10]} 0-1


[Site "https://www.chess.com"]

[Event "Titled Tuesday Blitz February 22 Early 2022"]
[White "Lonoff, Marc"]
[Black "Singh, Ojasva"]
[WhiteFideId "2001349"]
[BlackFideId "25681958"]
[WhiteElo "2248"]
[BlackElo "1741"]
[Result "1-0"]
[Round "10"]
[TimeControl "180+1"]
[Date "2022.02.22"]
[WhiteClock "0:01:40"]
[BlackClock "0:00:13"]

1. c4 {[%clk 0:03:00]}  e5 {[%clk 0:02:58]} 2. Nc3 {[%clk 0:03:00]}  Nc6 {[%clk 0:02:57]} 3. g3 {[%clk 0:03:00]}  g6 {[%clk 0:02:57]} 4. Bg2 {[%clk 0:02:59]}  Bg7 {[%clk 0:02:57]} 5. e4 {[%clk 0:02:59]}  Nge7 {[%clk 0:02:53]} 6. Nge2 {[%clk 0:02:59]}  O-O {[%clk 0:02:53]} 7. d3 {[%clk 0:02:57]}  d6 {[%clk 0:02:54]} 8. O-O {[%clk 0:02:57]}  Nd4 {[%clk 0:02:52]} 9. Nxd4 {[%clk 0:02:56]}  exd4 {[%clk 0:02:52]} 10. Ne2 {[%clk 0:02:56]}  a6 {[%clk 0:02:51]} 11. Rb1 {[%clk 0:02:43]}  Rb8 {[%clk 0:02:50]} 12. b4 {[%clk 0:02:38]}  b5 {[%clk 0:02:50]} 13. cxb5 {[%clk 0:02:36]}  axb5 {[%clk 0:02:51]} 14. Bb2 {[%clk 0:02:28]}  c5 {[%clk 0:02:48]} 15. Rc1 {[%clk 0:02:27]}  Ra8 {[%clk 0:02:21]} 16. a3 {[%clk 0:02:17]}  cxb4 {[%clk 0:02:20]} 17. axb4 {[%clk 0:02:16]}  Qb6 {[%clk 0:02:19]} 18. e5 {[%clk 0:02:11]}  Bb7 {[%clk 0:02:09]} 19. Bxd4 {[%clk 0:02:09]}  Qa6 {[%clk 0:02:04]} 20. Ra1 {[%clk 0:02:06]}  Bxg2 {[%clk 0:01:25]} 21. Rxa6 {[%clk 0:02:02]}  Bxf1 {[%clk 0:01:16]} 22. Rxa8 {[%clk 0:02:01]}  Rxa8 {[%clk 0:01:16]} 23. Kxf1 {[%clk 0:01:57]}  dxe5 {[%clk 0:01:15]} 24. Bc5 {[%clk 0:01:57]}  Nc6 {[%clk 0:00:52]} 25. Kg2 {[%clk 0:01:55]}  h5 {[%clk 0:00:46]} 26. Qb3 {[%clk 0:01:51]}  Ra1 {[%clk 0:00:36]} 27. Qd5 {[%clk 0:01:50]}  Ra6 {[%clk 0:00:18]} 28. Qd7 {[%clk 0:01:42]}  f5 {[%clk 0:00:13]} 29. Qc8+ {[%clk 0:01:40]} 1-0


[Site "https://www.chess.com"]

[Event "Titled Tuesday Blitz February 22 Early 2022"]
[White "Loy, Konstantin"]
[Black "Volkov, Maksim"]
[WhiteFideId "14122499"]
[BlackFideId "54123070"]
[WhiteElo "2084"]
[BlackElo "2081"]
[Result "1-0"]
[Round "10"]
[TimeControl "180+1"]
[Date "2022.02.22"]
[WhiteClock "0:00:41"]
[BlackClock "0:01:15"]

1. e4 {[%clk 0:02:59]}  c5 {[%clk 0:02:55]} 2. Nf3 {[%clk 0:02:59]}  d6 {[%clk 0:02:55]} 3. d4 {[%clk 0:02:59]}  cxd4 {[%clk 0:02:56]} 4. Qxd4 {[%clk 0:02:59]}  Nf6 {[%clk 0:02:55]} 5. e5 {[%clk 0:02:59]}  Nc6 {[%clk 0:02:55]} 6. Bb5 {[%clk 0:02:59]}  Qa5+ {[%clk 0:02:54]} 7. Nc3 {[%clk 0:02:59]}  Qxb5 {[%clk 0:02:55]} 8. Nxb5 {[%clk 0:03:00]}  Nxd4 {[%clk 0:02:55]} 9. Nfxd4 {[%clk 0:03:00]}  dxe5 {[%clk 0:02:52]} 10. Nc7+ {[%clk 0:02:59]}  Kd7 {[%clk 0:02:51]} 11. Nxa8 {[%clk 0:03:00]}  exd4 {[%clk 0:02:50]} 12. Bf4 {[%clk 0:03:01]}  e5 {[%clk 0:02:46]} 13. Bxe5 {[%clk 0:03:00]}  Bd6 {[%clk 0:02:46]} 14. Bxd6 {[%clk 0:02:54]}  Kxd6 {[%clk 0:02:46]} 15. O-O-O {[%clk 0:02:53]}  Kc5 {[%clk 0:02:46]} 16. Rhe1 {[%clk 0:02:32]}  Bg4 {[%clk 0:02:28]} 17. f3 {[%clk 0:02:28]}  Bd7 {[%clk 0:02:24]} 18. Re7 {[%clk 0:01:39]}  Rxa8 {[%clk 0:02:02]} 19. Rxf7 {[%clk 0:01:39]}  Bc6 {[%clk 0:01:57]} 20. Rxg7 {[%clk 0:01:33]}  Re8 {[%clk 0:01:57]} 21. b3 {[%clk 0:01:27]}  Re2 {[%clk 0:01:49]} 22. Rd2 {[%clk 0:01:24]}  Re1+ {[%clk 0:01:49]} 23. Kb2 {[%clk 0:01:07]}  h6 {[%clk 0:01:41]} 24. c3 {[%clk 0:00:52]}  dxc3+ {[%clk 0:01:38]} 25. Kxc3 {[%clk 0:00:52]}  Nd5+ {[%clk 0:01:38]} 26. Kb2 {[%clk 0:00:51]}  Kb6 {[%clk 0:01:17]} 27. Rg6 {[%clk 0:00:47]}  h5 {[%clk 0:01:15]} 28. Rxd5 {[%clk 0:00:41]} 1-0


[Site "https://www.chess.com"]

[Event "Titled Tuesday Blitz February 22 Early 2022"]
[White "Maevsky, Nikolay"]
[Black "Sahil, Tickoo"]
[WhiteFideId "4198220"]
[BlackFideId "5019710"]
[WhiteElo "2104"]
[BlackElo "2099"]
[Result "1-0"]
[Round "10"]
[TimeControl "180+1"]
[Date "2022.02.22"]
[WhiteClock "0:01:00"]
[BlackClock "0:00:01"]

1. d4 {[%clk 0:03:00]}  d5 {[%clk 0:02:57]} 2. Nf3 {[%clk 0:03:01]}  Nf6 {[%clk 0:02:56]} 3. e3 {[%clk 0:03:01]}  c6 {[%clk 0:02:55]} 4. Nbd2 {[%clk 0:03:00]}  Bf5 {[%clk 0:02:52]} 5. Ne5 {[%clk 0:02:58]}  e6 {[%clk 0:02:52]} 6. g4 {[%clk 0:02:58]}  Be4 {[%clk 0:02:46]} 7. f3 {[%clk 0:02:57]}  Bg6 {[%clk 0:02:45]} 8. h4 {[%clk 0:02:57]}  h5 {[%clk 0:02:38]} 9. g5 {[%clk 0:02:55]}  Nfd7 {[%clk 0:02:36]} 10. Nxg6 {[%clk 0:02:55]}  fxg6 {[%clk 0:02:37]} 11. Bd3 {[%clk 0:02:52]}  Kf7 {[%clk 0:02:35]} 12. f4 {[%clk 0:02:48]}  Bd6 {[%clk 0:02:20]} 13. c4 {[%clk 0:02:48]}  Nf8 {[%clk 0:02:00]} 14. Qc2 {[%clk 0:02:45]}  Nbd7 {[%clk 0:01:47]} 15. O-O {[%clk 0:02:45]}  Qe8 {[%clk 0:01:35]} 16. e4 {[%clk 0:02:45]}  Kg8 {[%clk 0:01:28]} 17. Nf3 {[%clk 0:02:33]}  Qf7 {[%clk 0:00:56]} 18. Bd2 {[%clk 0:02:33]}  Rc8 {[%clk 0:00:50]} 19. b4 {[%clk 0:02:27]}  Qe7 {[%clk 0:00:47]} 20. c5 {[%clk 0:02:19]}  Bb8 {[%clk 0:00:46]} 21. exd5 {[%clk 0:02:13]}  exd5 {[%clk 0:00:42]} 22. Rae1 {[%clk 0:02:09]}  Qf7 {[%clk 0:00:36]} 23. Ne5 {[%clk 0:02:09]}  Nxe5 {[%clk 0:00:36]} 24. fxe5 {[%clk 0:02:08]}  Qe6 {[%clk 0:00:34]} 25. Bf4 {[%clk 0:01:53]}  Kh7 {[%clk 0:00:33]} 26. Bg3 {[%clk 0:01:49]}  Nd7 {[%clk 0:00:26]} 27. Kh2 {[%clk 0:01:48]}  Rhf8 {[%clk 0:00:26]} 28. Qe2 {[%clk 0:01:47]}  Kg8 {[%clk 0:00:18]} 29. b5 {[%clk 0:01:42]}  Rxf1 {[%clk 0:00:17]} 30. Rxf1 {[%clk 0:01:41]}  Rf8 {[%clk 0:00:18]} 31. bxc6 {[%clk 0:01:38]}  bxc6 {[%clk 0:00:17]} 32. Rb1 {[%clk 0:01:36]}  Bc7 {[%clk 0:00:14]} 33. Rb7 {[%clk 0:01:34]}  Ba5 {[%clk 0:00:14]} 34. Rxa7 {[%clk 0:01:31]}  Bc3 {[%clk 0:00:14]} 35. Qe3 {[%clk 0:01:26]}  Qg4 {[%clk 0:00:12]} 36. Be2 {[%clk 0:01:10]}  Qe6 {[%clk 0:00:11]} 37. Qxc3 {[%clk 0:01:07]}  Qf5 {[%clk 0:00:02]} 38. Qe3 {[%clk 0:01:03]}  Rf7 {[%clk 0:00:01]} 39. e6 {[%clk 0:01:00]} 1-0


[Site "https://www.chess.com"]

[Event "Titled Tuesday Blitz February 22 Early 2022"]
[White "Maltsevskaya, Aleksandra"]
[Black "Orozbaev, Eldiar"]
[WhiteFideId "24174041"]
[BlackFideId "13802240"]
[WhiteElo "2283"]
[BlackElo "2050"]
[Result "1-0"]
[Round "10"]
[TimeControl "180+1"]
[Date "2022.02.22"]
[WhiteClock "0:00:03"]
[BlackClock "0:00:04"]

1. e4 {[%clk 0:03:00]}  e6 {[%clk 0:02:59]} 2. d3 {[%clk 0:03:00]}  d5 {[%clk 0:02:59]} 3. Nd2 {[%clk 0:03:00]}  Nc6 {[%clk 0:02:59]} 4. Ngf3 {[%clk 0:03:01]}  Nf6 {[%clk 0:02:59]} 5. g3 {[%clk 0:03:01]}  dxe4 {[%clk 0:02:58]} 6. dxe4 {[%clk 0:03:02]}  Bc5 {[%clk 0:02:58]} 7. Bg2 {[%clk 0:03:02]}  e5 {[%clk 0:02:58]} 8. O-O {[%clk 0:03:03]}  O-O {[%clk 0:02:59]} 9. c3 {[%clk 0:03:03]}  a5 {[%clk 0:02:59]} 10. Qc2 {[%clk 0:03:01]}  Qe7 {[%clk 0:02:59]} 11. Nc4 {[%clk 0:03:01]}  Rd8 {[%clk 0:02:55]} 12. Be3 {[%clk 0:03:00]}  b5 {[%clk 0:02:50]} 13. Bxc5 {[%clk 0:02:56]}  Qxc5 {[%clk 0:02:51]} 14. Ne3 {[%clk 0:02:57]}  Ba6 {[%clk 0:02:51]} 15. Rfd1 {[%clk 0:02:56]}  g6 {[%clk 0:02:44]} 16. Nd5 {[%clk 0:02:55]}  Nxd5 {[%clk 0:02:12]} 17. exd5 {[%clk 0:02:56]}  Nb4 {[%clk 0:02:08]} 18. Qe4 {[%clk 0:02:51]}  Nxd5 {[%clk 0:02:06]} 19. Ng5 {[%clk 0:02:03]}  Bb7 {[%clk 0:01:39]} 20. Qh4 {[%clk 0:02:02]}  h5 {[%clk 0:01:34]} 21. Ne4 {[%clk 0:02:02]}  Qb6 {[%clk 0:01:23]} 22. Rxd5 {[%clk 0:01:57]}  Bxd5 {[%clk 0:01:17]} 23. Nf6+ {[%clk 0:01:57]}  Kg7 {[%clk 0:01:16]} 24. Nxd5 {[%clk 0:01:57]}  Qd6 {[%clk 0:01:13]} 25. Re1 {[%clk 0:01:51]}  f6 {[%clk 0:00:46]} 26. Ne3 {[%clk 0:01:44]}  Rab8 {[%clk 0:00:41]} 27. Be4 {[%clk 0:01:28]}  Qe6 {[%clk 0:00:39]} 28. Bc2 {[%clk 0:01:09]}  Rd2 {[%clk 0:00:35]} 29. a4 {[%clk 0:01:00]}  b4 {[%clk 0:00:33]} 30. c4 {[%clk 0:00:08]}  b3 {[%clk 0:00:28]} 31. Be4 {[%clk 0:00:08]}  Rxb2 {[%clk 0:00:27]} 32. g4 {[%clk 0:00:06]}  Rh8 {[%clk 0:00:19]} 33. g5 {[%clk 0:00:05]}  f5 {[%clk 0:00:19]} 34. Bd5 {[%clk 0:00:05]}  Qd6 {[%clk 0:00:17]} 35. Qh3 {[%clk 0:00:04]}  Rd2 {[%clk 0:00:15]} 36. Nd1 {[%clk 0:00:04]}  b2 {[%clk 0:00:13]} 37. Nc3 {[%clk 0:00:04]}  Rb8 {[%clk 0:00:11]} 38. Qe3 {[%clk 0:00:05]}  Rc2 {[%clk 0:00:09]} 39. Kg2 {[%clk 0:00:03]}  Rxc3 {[%clk 0:00:08]} 40. Qxc3 {[%clk 0:00:04]}  b1=Q {[%clk 0:00:09]} 41. Rxb1 {[%clk 0:00:04]}  Rxb1 {[%clk 0:00:10]} 42. Qxa5 {[%clk 0:00:04]}  Qb6 {[%clk 0:00:08]} 43. Qa8 {[%clk 0:00:02]}  Qb8 {[%clk 0:00:08]} 44. Qc6 {[%clk 0:00:03]}  Qd8 {[%clk 0:00:06]} 45. Qe6 {[%clk 0:00:03]}  Qf8 {[%clk 0:00:05]} 46. Qd7+ {[%clk 0:00:03]}  Kh8 {[%clk 0:00:05]} 47. Qe6 {[%clk 0:00:02]}  Qg7 {[%clk 0:00:04]} 48. Qe8+ {[%clk 0:00:02]}  Kh7 {[%clk 0:00:03]} 49. a5 {[%clk 0:00:02]}  f4 {[%clk 0:00:03]} 50. a6 {[%clk 0:00:02]}  Ra1 {[%clk 0:00:04]} 51. Qc8 {[%clk 0:00:01]}  c6 {[%clk 0:00:04]} 52. Qxc6 {[%clk 0:00:01]}  Qe7 {[%clk 0:00:04]} 53. Qb7 {[%clk 0:00:02]}  Qxb7 {[%clk 0:00:02]} 54. axb7 {[%clk 0:00:03]}  Rb1 {[%clk 0:00:03]} 55. c5 {[%clk 0:00:03]}  h4 {[%clk 0:00:03]} 56. c6 {[%clk 0:00:03]}  Rb3 {[%clk 0:00:03]} 57. Bxb3 {[%clk 0:00:03]}  h3+ {[%clk 0:00:04]} 58. Kxh3 {[%clk 0:00:03]} 1-0


[Site "https://www.chess.com"]

[Event "Titled Tuesday Blitz February 22 Early 2022"]
[White "Manelyuk, Daniil"]
[Black "Petesch, Gabriel"]
[WhiteFideId "44173920"]
[BlackFideId "2032465"]
[WhiteElo "2222"]
[BlackElo "2374"]
[Result "1-0"]
[Round "10"]
[TimeControl "180+1"]
[Date "2022.02.22"]
[WhiteClock "0:00:58"]
[BlackClock "0:00:07"]

1. e4 {[%clk 0:03:00]}  d5 {[%clk 0:03:00]} 2. exd5 {[%clk 0:03:00]}  Qxd5 {[%clk 0:03:01]} 3. Nc3 {[%clk 0:03:00]}  Qd8 {[%clk 0:03:02]} 4. d4 {[%clk 0:02:52]}  c6 {[%clk 0:03:03]} 5. Nf3 {[%clk 0:02:52]}  Nf6 {[%clk 0:03:04]} 6. Bc4 {[%clk 0:02:52]}  Bf5 {[%clk 0:03:02]} 7. Nh4 {[%clk 0:02:47]}  Bg4 {[%clk 0:03:00]} 8. f3 {[%clk 0:02:46]}  Bh5 {[%clk 0:02:56]} 9. Bg5 {[%clk 0:02:37]}  e6 {[%clk 0:02:55]} 10. Qd2 {[%clk 0:02:32]}  Be7 {[%clk 0:02:51]} 11. g4 {[%clk 0:02:28]}  Nxg4 {[%clk 0:02:49]} 12. Bxe7 {[%clk 0:02:18]}  Qxe7 {[%clk 0:02:50]} 13. O-O-O {[%clk 0:02:16]}  Nf6 {[%clk 0:02:44]} 14. Rde1 {[%clk 0:02:13]}  Nbd7 {[%clk 0:02:44]} 15. Nf5 {[%clk 0:02:13]}  Qf8 {[%clk 0:02:42]} 16. Qf4 {[%clk 0:02:10]}  O-O-O {[%clk 0:02:34]} 17. Nd6+ {[%clk 0:02:09]}  Kb8 {[%clk 0:02:35]} 18. Ndb5+ {[%clk 0:02:06]}  e5 {[%clk 0:02:34]} 19. dxe5 {[%clk 0:02:06]}  cxb5 {[%clk 0:02:06]} 20. e6+ {[%clk 0:02:04]}  Ka8 {[%clk 0:01:52]} 21. e7 {[%clk 0:02:02]}  bxc4 {[%clk 0:01:50]} 22. exf8=Q {[%clk 0:02:01]}  Rhxf8 {[%clk 0:01:50]} 23. Nb5 {[%clk 0:02:01]}  a6 {[%clk 0:01:49]} 24. Nc7+ {[%clk 0:01:58]}  Ka7 {[%clk 0:01:50]} 25. Qd4+ {[%clk 0:01:55]}  Nb6 {[%clk 0:01:48]} 26. Qc5 {[%clk 0:01:40]}  Rc8 {[%clk 0:01:47]} 27. Re7 {[%clk 0:01:40]}  Nd5 {[%clk 0:01:44]} 28. Rd7 {[%clk 0:01:33]}  Bxf3 {[%clk 0:01:41]} 29. Rf1 {[%clk 0:01:31]}  Bg2 {[%clk 0:01:02]} 30. Rf2 {[%clk 0:01:22]}  Bh1 {[%clk 0:01:02]} 31. Rfxf7 {[%clk 0:01:17]}  Nxc7 {[%clk 0:00:45]} 32. Rxf8 {[%clk 0:01:02]}  Rxf8 {[%clk 0:00:31]} 33. Qxf8 {[%clk 0:01:03]}  Nxd7 {[%clk 0:00:30]} 34. Qd6 {[%clk 0:01:02]}  Nb6 {[%clk 0:00:07]} 35. Qxc7 {[%clk 0:01:01]}  Be4 {[%clk 0:00:07]} 36. Qxg7 {[%clk 0:01:00]}  Bg6 {[%clk 0:00:07]} 37. h4 {[%clk 0:01:00]}  a5 {[%clk 0:00:07]} 38. Qh6 {[%clk 0:00:58]} 1-0


[Site "https://www.chess.com"]